fUST/lending_fUST_20250518
["ID","MTS","AMOUNT","RATE_DAILY","PERIOD"]
[361378922,1747530653121,-450.0,0.0001452,2]
[361378923,1747530653130,-552.64,0.0001452,2]
[361378924,1747530653139,-1733.46,0.0001452,2]
[361378925,1747530653157,-450.0,0.0001452,2]
[361378926,1747530653166,-450.0,0.0001452,2]
[361378927,1747530653176,-450.0,0.0001452,2]
[361378928,1747530653185,-450.0,0.0001452,2]
[361378929,1747530653194,-317.25,0.0001452,2]
[361378930,1747530653203,-876.36,0.0001452,2]
[361378931,1747530653212,-450.0,0.0001452,2]
[361378932,1747530653222,-682.15,0.0001452,2]
[361378933,1747530653232,-1217.54,0.0001452,2]
[361378934,1747530653241,-669.25,0.0001452,2]
[361378935,1747530653250,-450.0,0.0001452,2]
[361378936,1747530653260,-1360.17,0.0001452,2]
[361378937,1747530653269,-450.0,0.0001452,2]
[361378938,1747530653279,-500.0,0.0001459,2]
[361378939,1747530653289,-500.0,0.0001459,2]
[361378940,1747530653298,-500.0,0.00014594,2]
[361378941,1747530653308,-500.0,0.00014594,2]
[361378942,1747530653317,-500.0,0.00014594,2]
[361378943,1747530653327,-500.0,0.00014594,2]
[361378944,1747530653337,-239.304,0.00014629,2]
[361378945,1747530653346,-250.0,0.00014629,2]
[361378946,1747530653355,-160.389,0.00014629,2]
[361378947,1747530653365,-257.22,0.00014629,2]
[361378948,1747530653374,-242.0,0.00014629,2]
[361378949,1747530653384,-546.0,0.00014629,2]
[361378950,1747530653395,-707.0,0.00014629,2]
[361378951,1747530653405,-2241.0,0.00014629,2]
[361378952,1747530653415,-500.0,0.00014633,2]
[361378953,1747530653424,-500.9158139,0.00014638,2]
[361378954,1747530653434,-500.0,0.00014638,2]
[361378955,1747530653443,-151.0,0.00014657,2]
[361378956,1747530653453,-151.0,0.00014657,2]
[361378957,1747530653462,-419.181542,0.00014657,2]
[361378958,1747530653473,-419.181542,0.00014657,2]
[361378959,1747530653482,-522.24,0.00014657,2]
[361378960,1747530653491,-450.0,0.00014657,2]
[361378961,1747530653501,-351.93,0.00014657,2]
[361378962,1747530653510,-190.68,0.00014657,2]
[361378963,1747530653520,-652.7,0.00014657,2]
[361378964,1747530653529,-450.0,0.00014657,2]
[361378965,1747530653539,-450.0,0.00014657,2]
[361378966,1747530653549,-502.11,0.00014657,2]
[361378967,1747530653559,-450.0,0.00014657,2]
[361378968,1747530653569,-450.0,0.00014657,2]
[361378969,1747530653579,-450.0,0.00014657,2]
[361378970,1747530653590,-450.0,0.00014657,2]
[361378971,1747530653600,-502.97,0.00014657,2]
[361378972,1747530653609,-729.8,0.00014657,2]
[361378973,1747530653619,-2365.12,0.00014657,2]
[361378974,1747530653629,-450.0,0.00014657,2]
[361378975,1747530653640,-538.93,0.00014657,2]
[361378976,1747530653650,-214.74,0.00014657,2]
[361378977,1747530653661,-563.1,0.00014657,2]
[361378978,1747530653671,-450.0,0.00014657,2]
[361378979,1747530653682,-450.0,0.00014657,2]
[361378980,1747530653692,-552.64,0.00014657,2]
[361378981,1747530653702,-1733.46,0.00014657,2]
[361378982,1747530653711,-450.0,0.00014657,2]
[361378983,1747530653721,-450.0,0.00014657,2]
[361378984,1747530653731,-450.0,0.00014657,2]
[361378985,1747530653741,-567.78,0.00014657,2]
[361378986,1747530653751,-876.36,0.00014657,2]
[361378987,1747530653760,-450.0,0.00014657,2]
[361378988,1747530653771,-682.15,0.00014657,2]
[361378989,1747530653780,-1217.54,0.00014657,2]
[361378990,1747530653790,-669.25,0.00014657,2]
[361378991,1747530653800,-450.0,0.00014657,2]
[361378992,1747530653810,-1360.17,0.00014657,2]
[361378993,1747530653820,-450.0,0.00014657,2]
[361378994,1747530653829,-431.39363942,0.00014715,2]
[361378995,1747530653839,-151.0,0.00014728,2]
[361378996,1747530653848,-273.13848,0.00014728,2]
[361378997,1747530653858,-273.13848,0.00014728,2]
[361378998,1747530653867,-151.0,0.00014728,2]
[361378999,1747530653877,-151.0,0.00014728,2]
[361379000,1747530653887,-500.0,0.00014733,2]
[361379001,1747530653897,-500.0,0.00014751,2]
[361379002,1747530653906,-450.0,0.00014794,2]
[361379003,1747530653916,-652.7,0.00014794,2]
[361379004,1747530653925,-450.0,0.00014794,2]
[361379005,1747530653935,-450.0,0.00014794,2]
[361379006,1747530653945,-281.07,0.00014794,2]
[361379007,1747530653955,-450.0,0.00014794,2]
[361379008,1747530653965,-450.0,0.00014794,2]
[361379009,1747530653974,-450.0,0.00014794,2]
[361379010,1747530653984,-502.97,0.00014794,2]
[361379011,1747530653993,-729.8,0.00014794,2]
[361379012,1747530654003,-2365.12,0.00014794,2]
[361379013,1747530654014,-450.0,0.00014794,2]
[361379014,1747530654024,-538.93,0.00014794,2]
[361379015,1747530654035,-563.1,0.00014794,2]
[361379016,1747530654047,-450.0,0.00014794,2]
[361379017,1747530654059,-450.0,0.00014794,2]
[361379018,1747530654071,-552.64,0.00014794,2]
[361379019,1747530654082,-1733.46,0.00014794,2]
[361379020,1747530654091,-450.0,0.00014794,2]
[361379021,1747530654101,-450.0,0.00014794,2]
[361379022,1747530654112,-450.0,0.00014794,2]
[361379023,1747530654123,-876.36,0.00014794,2]
[361379024,1747530654134,-450.0,0.00014794,2]
[361379025,1747530654145,-682.15,0.00014794,2]
[361379026,1747530654162,-1217.54,0.00014794,2]
[361379027,1747530654179,-669.25,0.00014794,2]
[361379028,1747530654190,-450.0,0.00014794,2]
[361379029,1747530654200,-1360.17,0.00014794,2]
[361379030,1747530654209,-450.0,0.00014794,2]
[361379031,1747530654220,-500.0,0.0001481,2]
[361379032,1747530654230,-450.0,0.00014931,2]
[361379033,1747530654240,-652.7,0.00014931,2]
[361379034,1747530654250,-450.0,0.00014931,2]
[361379035,1747530654259,-450.0,0.00014931,2]
[361379036,1747530654270,-450.0,0.00014931,2]
[361379037,1747530654280,-450.0,0.00014931,2]
[361379038,1747530654289,-450.0,0.00014931,2]
[361379039,1747530654299,-502.97,0.00014931,2]
[361379040,1747530654308,-729.8,0.00014931,2]
[361379041,1747530654318,-2365.12,0.00014931,2]
[361379042,1747530654328,-450.0,0.00014931,2]
[361379043,1747530654337,-538.93,0.00014931,2]
[361379044,1747530654346,-563.1,0.00014931,2]
[361379045,1747530654356,-450.0,0.00014931,2]
[361379046,1747530654365,-450.0,0.00014931,2]
[361379047,1747530654375,-552.64,0.00014931,2]
[361379048,1747530654384,-1733.46,0.00014931,2]
[361379049,1747530654394,-450.0,0.00014931,2]
[361379050,1747530654408,-450.0,0.00014931,2]
[361379051,1747530654418,-450.0,0.00014931,2]
[361379052,1747530654427,-876.36,0.00014931,2]
[361379053,1747530654438,-158.1,0.00014931,2]
[361379054,1747530654448,-682.15,0.00014931,2]
[361379055,1747530654458,-1217.54,0.00014931,2]
[361379056,1747530654467,-669.25,0.00014931,2]
[361379057,1747530654478,-450.0,0.00014931,2]
[361379058,1747530654488,-1360.17,0.00014931,2]
[361379059,1747530654497,-450.0,0.00014931,2]
[361379060,1747530654507,-151.0,0.00015026,2]
[361379061,1747530654517,-151.0,0.00015026,2]
[361379062,1747530654527,-158.0438358,0.00015041,2]
[361379063,1747530654536,-569.5668793,0.00015041,2]
[361379064,1747530654546,-153.0,0.00015041,2]
[361379065,1747530654555,-419.181542,0.00015068,2]
[361379066,1747530654564,-419.181542,0.00015068,2]
[361379067,1747530654574,-450.0,0.00015068,2]
[361379068,1747530654583,-652.7,0.00015068,2]
[361379069,1747530654593,-450.0,0.00015068,2]
[361379070,1747530654602,-450.0,0.00015068,2]
[361379071,1747530654612,-450.0,0.00015068,2]
[361379072,1747530654621,-450.0,0.00015068,2]
[361379073,1747530654630,-450.0,0.00015068,2]
[361379074,1747530654640,-502.97,0.00015068,2]
[361379075,1747530654649,-729.8,0.00015068,2]
[361379076,1747530654659,-2365.12,0.00015068,2]
[361379077,1747530654669,-450.0,0.00015068,2]
[361379078,1747530654679,-538.93,0.00015068,2]
[361379079,1747530654689,-563.1,0.00015068,2]
[361379080,1747530654699,-450.0,0.00015068,2]
[361379081,1747530654709,-450.0,0.00015068,2]
[361379082,1747530654718,-552.64,0.00015068,2]
[361379083,1747530654728,-1733.46,0.00015068,2]
[361379084,1747530654738,-450.0,0.00015068,2]
[361379085,1747530654748,-450.0,0.00015068,2]
[361379086,1747530654758,-450.0,0.00015068,2]
[361379087,1747530654767,-876.36,0.00015068,2]
[361379088,1747530654777,-682.15,0.00015068,2]
[361379089,1747530654788,-1217.54,0.00015068,2]
[361379090,1747530654797,-669.25,0.00015068,2]
[361379091,1747530654807,-450.0,0.00015068,2]
[361379092,1747530654816,-1360.17,0.00015068,2]
[361379093,1747530654826,-450.0,0.00015068,2]
[361379094,1747530654835,-215.0738,0.00015074,2]
[361379095,1747530654845,-273.13848,0.00015141,2]
[361379096,1747530654857,-273.13848,0.00015141,2]
[361379097,1747530654868,-151.0,0.00015141,2]
[361379098,1747530654879,-151.0,0.00015141,2]
[361379099,1747530654891,-1000.0,0.00015186,2]
[361379100,1747530654901,-151.0,0.000152,2]
[361379101,1747530654911,-450.0,0.00015205,2]
[361379102,1747530654921,-652.7,0.00015205,2]
[361379103,1747530654931,-450.0,0.00015205,2]
[361379104,1747530654941,-450.0,0.00015205,2]
[361379105,1747530654951,-450.0,0.00015205,2]
[361379106,1747530654961,-450.0,0.00015205,2]
[361379107,1747530654970,-423.84,0.00015205,2]
[361379108,1747530654980,-502.97,0.00015205,2]
[361379109,1747530654989,-729.8,0.00015205,2]
[361379110,1747530654998,-2365.12,0.00015205,2]
[361379111,1747530655008,-450.0,0.00015205,2]
[361379112,1747530655017,-538.93,0.00015205,2]
[361379113,1747530655026,-563.1,0.00015205,2]
[361379114,1747530655036,-450.0,0.00015205,2]
[361379115,1747530655045,-450.0,0.00015205,2]
[361379116,1747530655055,-552.64,0.00015205,2]
[361379117,1747530655065,-1733.46,0.00015205,2]
[361379118,1747530655074,-450.0,0.00015205,2]
[361379119,1747530655084,-450.0,0.00015205,2]
[361379120,1747530655094,-450.0,0.00015205,2]
[361379121,1747530655104,-876.36,0.00015205,2]
[361379122,1747530655114,-682.15,0.00015205,2]
[361379123,1747530655123,-1217.54,0.00015205,2]
[361379124,1747530655133,-669.25,0.00015205,2]
[361379125,1747530655143,-450.0,0.00015205,2]
[361379126,1747530655270,-1360.17,0.00015205,2]
[361379127,1747530655279,-450.0,0.00015205,2]
[361379128,1747530655288,-450.0,0.00015342,2]
[361379129,1747530655297,-652.7,0.00015342,2]
[361379130,1747530655307,-450.0,0.00015342,2]
[361379131,1747530655315,-450.0,0.00015342,2]
[361379132,1747530655325,-450.0,0.00015342,2]
[361379133,1747530655334,-450.0,0.00015342,2]
[361379134,1747530655344,-502.97,0.00015342,2]
[361379135,1747530655353,-729.8,0.00015342,2]
[361379136,1747530655362,-2365.12,0.00015342,2]
[361379137,1747530655371,-450.0,0.00015342,2]
[361379138,1747530655380,-538.93,0.00015342,2]
[361379139,1747530655391,-563.1,0.00015342,2]
[361379140,1747530655404,-450.0,0.00015342,2]
[361379141,1747530655414,-450.0,0.00015342,2]
[361379142,1747530655422,-552.64,0.00015342,2]
[361379143,1747530655432,-1733.46,0.00015342,2]
[361379144,1747530655441,-577.81,0.00015342,2]
[361379145,1747530655450,-450.0,0.00015342,2]
[361379146,1747530655460,-450.0,0.00015342,2]
[361379147,1747530655469,-876.36,0.00015342,2]
[361379148,1747530655478,-682.15,0.00015342,2]
[361379149,1747530655488,-1217.54,0.00015342,2]
[361379150,1747530655498,-669.25,0.00015342,2]
[361379151,1747530655507,-450.0,0.00015342,2]
[361379152,1747530655517,-1360.17,0.00015342,2]
[361379153,1747530655526,-450.0,0.00015342,2]
[361379154,1747530655535,-569.5668793,0.00015342,2]
[361379155,1747530655545,-569.5668793,0.00015342,2]
[361379156,1747530655554,-548.9397285,0.00015342,2]
[361379157,1747530655564,-151.0,0.00015479,2]
[361379158,1747530655573,-151.0,0.00015479,2]
[361379159,1747530655583,-419.181542,0.00015479,2]
[361379160,1747530655592,-419.181542,0.00015479,2]
[361379161,1747530655602,-450.0,0.00015479,2]
[361379162,1747530655611,-652.7,0.00015479,2]
[361379163,1747530655620,-450.0,0.00015479,2]
[361379164,1747530655629,-450.0,0.00015479,2]
[361379165,1747530655639,-450.0,0.00015479,2]
[361379166,1747530655648,-450.0,0.00015479,2]
[361379167,1747530655658,-502.97,0.00015479,2]
[361379168,1747530655667,-729.8,0.00015479,2]
[361379169,1747530655676,-2365.12,0.00015479,2]
[361379170,1747530655686,-450.0,0.00015479,2]
[361379171,1747530655695,-538.93,0.00015479,2]
[361379172,1747530655704,-563.1,0.00015479,2]
[361379173,1747530655714,-156.33,0.00015479,2]
[361379174,1747530655724,-450.0,0.00015479,2]
[361379175,1747530655733,-552.64,0.00015479,2]
[361379176,1747530655743,-1733.46,0.00015479,2]
[361379177,1747530655753,-450.0,0.00015479,2]
[361379178,1747530655763,-450.0,0.00015479,2]
[361379179,1747530655773,-876.36,0.00015479,2]
[361379180,1747530655784,-682.15,0.00015479,2]
[361379181,1747530655794,-1217.54,0.00015479,2]
[361379182,1747530655804,-669.25,0.00015479,2]
[361379183,1747530655813,-450.0,0.00015479,2]
[361379184,1747530655823,-1360.17,0.00015479,2]
[361379185,1747530655832,-450.0,0.00015479,2]
[361379186,1747530655841,-151.0,0.000155,2]
[361379187,1747530655851,-273.13848,0.00015616,2]
[361379188,1747530655860,-273.13848,0.00015616,2]
[361379189,1747530655869,-151.0,0.00015616,2]
[361379190,1747530655879,-295.79296,0.00015616,2]
[361379191,1747530655889,-260.28,0.00015616,2]
[361379192,1747530655899,-652.7,0.00015616,2]
[361379193,1747530655908,-450.0,0.00015616,2]
[361379194,1747530655918,-450.0,0.00015616,2]
[361379195,1747530655928,-450.0,0.00015616,2]
[361379196,1747530655938,-450.0,0.00015616,2]
[361379197,1747530655948,-502.97,0.00015616,2]
[361379198,1747530655957,-729.8,0.00015616,2]
[361379199,1747530655966,-2365.12,0.00015616,2]
[361379200,1747530655977,-450.0,0.00015616,2]
[361379201,1747530655986,-538.93,0.00015616,2]
[361379202,1747530655995,-563.1,0.00015616,2]
[361379203,1747530656004,-450.0,0.00015616,2]
[361379204,1747530656014,-552.64,0.00015616,2]
[361379205,1747530656024,-1733.46,0.00015616,2]
[361379206,1747530656033,-450.0,0.00015616,2]
[361379207,1747530656044,-450.0,0.00015616,2]
[361379208,1747530656054,-876.36,0.00015616,2]
[361379209,1747530656065,-682.15,0.00015616,2]
[361379210,1747530656078,-1217.54,0.00015616,2]
[361379211,1747530656087,-669.25,0.00015616,2]
[361379212,1747530656097,-450.0,0.00015616,2]
[361379213,1747530656108,-1360.17,0.00015616,2]
[361379214,1747530656118,-450.0,0.00015616,2]
[361379215,1747530656128,-816.3716696,0.00015674,2]
[361379216,1747530656138,-1500.0,0.00015734,2]
[361379217,1747530656148,-652.7,0.00015753,2]
[361379218,1747530656158,-450.0,0.00015753,2]
[361379219,1747530656168,-450.0,0.00015753,2]
[361379220,1747530656179,-450.0,0.00015753,2]
[361379221,1747530656190,-450.0,0.00015753,2]
[361379222,1747530656200,-502.97,0.00015753,2]
[361379223,1747530656210,-729.8,0.00015753,2]
[361379224,1747530656221,-2365.12,0.00015753,2]
[361379225,1747530656230,-450.0,0.00015753,2]
[361379226,1747530656240,-538.93,0.00015753,2]
[361379227,1747530656249,-563.1,0.00015753,2]
[361379228,1747530656259,-450.0,0.00015753,2]
[361379229,1747530656269,-552.64,0.00015753,2]
[361379230,1747530656278,-1733.46,0.00015753,2]
[361379231,1747530656288,-450.0,0.00015753,2]
[361379232,1747530656298,-450.0,0.00015753,2]
[361379233,1747530656309,-876.36,0.00015753,2]
[361379234,1747530656321,-682.15,0.00015753,2]
[361379235,1747530656330,-1217.54,0.00015753,2]
[361379236,1747530656341,-669.25,0.00015753,2]
[361379237,1747530656352,-450.0,0.00015753,2]
[361379238,1747530656363,-1360.17,0.00015753,2]
[361379239,1747530656374,-377.64,0.00015753,2]
[361379240,1747530656384,-151.0,0.000158,2]
[361379241,1747530656395,-322.1351761,0.00015808,2]
[361379242,1747530656408,-153.0,0.00015808,2]
[361379243,1747530656419,-569.5668793,0.00015808,2]
[361379244,1747530656429,-351.3553543,0.00015808,2]
[361379245,1747530656439,-152.138284,0.00015838,3]
[361379246,1747530656448,-153.0,0.00015863,2]
[361379247,1747530656457,-175.8769535,0.00015863,2]
[361379248,1747530656468,-175.8769535,0.00015863,2]
[361379249,1747530656479,-153.968453,0.00015863,2]
[361379250,1747530656488,-1139.1337586,0.00015863,2]
[361379251,1747530656498,-316.0876716,0.00015863,2]
[361379252,1747530656507,-175.8769535,0.00015863,2]
[361379253,1747530656516,-153.0,0.00015863,2]
[361379254,1747530656525,-569.5668793,0.00015863,2]
[361379255,1747530656534,-158.0438358,0.00015863,2]
[361379256,1747530656543,-158.0438358,0.00015863,2]
[361379257,1747530656552,-175.8769535,0.00015863,2]
[361379258,1747530656561,-153.0,0.00015863,2]
[361379259,1747530656571,-569.5668793,0.00015863,2]
[361379260,1747530656580,-312.5890484,0.00015863,2]
[361379261,1747530656590,-175.8769535,0.00015863,2]
[361379262,1747530656599,-153.0,0.00015863,2]
[361379263,1747530656608,-353.7805955,0.00015863,2]
[361379264,1747530656618,-419.181542,0.0001589,2]
[361379265,1747530656627,-419.181542,0.0001589,2]
[361379266,1747530656638,-652.7,0.0001589,2]
[361379267,1747530656647,-450.0,0.0001589,2]
[361379268,1747530656657,-450.0,0.0001589,2]
[361379269,1747530656667,-450.0,0.0001589,2]
[361379270,1747530656677,-450.0,0.0001589,2]
[361379271,1747530656686,-502.97,0.0001589,2]
[361379272,1747530656695,-729.8,0.0001589,2]
[361379273,1747530656705,-986.29623239,0.0001589,2]
[361379274,1747530656871,-1378.82376761,0.0001589,2]
[361379275,1747530656881,-199.9673102,0.0001589,2]
[361379276,1747530656896,-250.0326898,0.0001589,2]
[361379277,1747530656906,-538.93,0.0001589,2]
[361379278,1747530656917,-563.1,0.0001589,2]
[361379279,1747530656929,-450.0,0.0001589,2]
[361379280,1747530656940,-552.64,0.0001589,2]
[361379281,1747530656951,-1733.46,0.0001589,2]
[361379282,1747530656962,-450.0,0.0001589,2]
[361379283,1747530656973,-341.17135826,0.0001589,2]
[361379284,1747530656982,-876.36,0.0001589,2]
[361379285,1747530656992,-682.15,0.0001589,2]
[361379286,1747530657001,-1217.54,0.0001589,2]
[361379287,1747530657010,-669.25,0.0001589,2]
[361379288,1747530657019,-450.0,0.0001589,2]
[361379289,1747530657028,-1360.17,0.0001589,2]
[361379290,1747530657037,-151.0,0.000159,2]
[361379291,1747530657047,-5000.0,0.00016,2]
[361379292,1747530657056,-151.0,0.00016027,2]
[361379293,1747530657066,-151.0,0.00016027,2]
[361379294,1747530657076,-652.7,0.00016027,2]
[361379295,1747530657085,-450.0,0.00016027,2]
[361379296,1747530657095,-450.0,0.00016027,2]
[361379297,1747530657104,-450.0,0.00016027,2]
[361379298,1747530657113,-450.0,0.00016027,2]
[361379299,1747530657122,-502.97,0.00016027,2]
[361379300,1747530657132,-604.02694866,0.00016027,2]
[361379301,1747530677580,10000.0,0.00027397,120]
[361379302,1747530686621,10000.0,0.00027397,120]
[361379303,1747530696706,10000.0,0.00027397,120]
[361379307,1747530753884,499848.09,0.000273,120]
[361379308,1747530757308,-300.0,0.00013697,2]
[361379309,1747530757331,-151.0,0.00013698,2]
[361379310,1747530757353,-151.0,0.00013698,2]
[361379311,1747530757378,-450.0,0.00013698,2]
[361379312,1747530757403,-450.0,0.00013698,2]
[361379313,1747530757427,-77.0,0.00013698,2]
[361379314,1747531041160,1426.27,0.0002547,60]
[361379319,1747531624963,8593.81722499,0.00025447,30]
[361379321,1747531636233,-215.7496175,0.00012802,2]
[361379325,1747531750113,-294.0,0.000123,2]
[361379382,1747531832260,-10.0,0.000123,2]
[361379384,1747531832270,-340.39097897,0.00012674,2]
[361379386,1747531832279,-265.76658967,0.00012801,2]
[361379393,1747531832337,-34.23341033,0.00012801,2]
[361379395,1747531832346,-1200.0,0.00012801,2]
[361379397,1747531832355,-300.0,0.00012801,2]
[361379399,1747531832364,-589.43890391,0.00012802,2]
[361379448,1747531838177,-1000.0,0.00012802,2]
[361379449,1747531838255,-4403.59638896,0.00012802,2]
[361379450,1747531838270,-3239.65559692,0.00012802,2]
[361379452,1747531838282,-445.72498211,0.00012802,2]
[361379453,1747531838291,-261.6349489,0.00012921,2]
[361379454,1747531838300,-430.3182448,0.00013598,2]
[361379455,1747531838309,-151.0,0.00013698,2]
[361379456,1747531838318,-450.0,0.00013698,2]
[361379457,1747531838327,-450.0,0.00013698,2]
[361379458,1747531838336,-390.08480252,0.00013698,2]
[361379513,1747531840404,-59.91519748,0.00013698,2]
[361379515,1747531840413,-450.0,0.00013698,2]
[361379517,1747531840422,-450.0,0.00013698,2]
[361379519,1747531840432,-450.0,0.00013698,2]
[361379520,1747531840441,-450.0,0.00013698,2]
[361379522,1747531840450,-450.0,0.00013698,2]
[361379524,1747531840459,-450.0,0.00013698,2]
[361379526,1747531840469,-424.36,0.00013698,2]
[361379528,1747531840478,-450.0,0.00013698,2]
[361379530,1747531840487,-450.0,0.00013698,2]
[361379532,1747531840496,-450.0,0.00013698,2]
[361379534,1747531840505,-450.0,0.00013698,2]
[361379536,1747531840514,-450.0,0.00013698,2]
[361379538,1747531840524,-450.0,0.00013698,2]
[361379540,1747531840533,-450.0,0.00013698,2]
[361379542,1747531840542,-450.0,0.00013698,2]
[361379544,1747531840552,-450.0,0.00013698,2]
[361379546,1747531840562,-450.0,0.00013698,2]
[361379548,1747531840571,-450.0,0.00013698,2]
[361379549,1747531840580,-450.0,0.00013698,2]
[361379551,1747531840590,-964.36,0.00013698,2]
[361379553,1747531840599,-450.0,0.00013698,2]
[361379555,1747531840608,-450.0,0.00013698,2]
[361379557,1747531840618,-450.0,0.00013698,2]
[361379559,1747531840627,-450.0,0.00013698,2]
[361379561,1747531840636,-450.0,0.00013698,2]
[361379563,1747531840645,-212.02329872,0.00013698,2]
[361379625,1747531937952,160.0,0.00025448,30]
[361379626,1747531940143,825.78,0.00027397,120]
[361379627,1747531960762,27616.2802198,0.0002739,120]
[361379628,1747532029561,655.772,0.00027397,120]
[361379631,1747532318023,500.0,0.00027397,120]
[361379632,1747532361135,500.0,0.00027397,120]
[361379633,1747532370206,500.0,0.00027397,120]
[361379634,1747532377892,246.99802264,0.00027397,120]
[361379635,1747532385056,500.0,0.00027397,120]
[361379636,1747532604281,1161.0,0.000273,120]
[361379642,1747532853947,-215.23596201,0.00012836,2]
[361379667,1747532988484,17495.52024045,0.00025449,30]
[361379699,1747533032536,-300.0,0.00012727,2]
[361379701,1747533032548,-1200.0,0.00012727,2]
[361379703,1747533032557,-24900.0,0.00012728,2]
[361379705,1747533032567,-141.03491679,0.00012836,2]
[361379708,1747533032582,-150.0,0.000136,2]
[361379711,1747533032600,-640.38451284,0.00013645,2]
[361379713,1747533032612,-500.0,0.00013697,2]
[361379716,1747533032624,-249.88701322,0.00013697,2]
[361379718,1747533032635,-472.27251724,0.00013697,2]
[361379720,1747533032646,-309.5348379,0.00013698,2]
[361379722,1747533032656,-456.19722619,0.00013698,2]
[361379724,1747533032667,-200.89456035,0.00013698,2]
[361379727,1747533032679,-591.08688262,0.00013698,2]
[361379729,1747533032691,-402.14020553,0.00013698,2]
[361379731,1747533032702,-355.02424968,0.00013698,2]
[361379733,1747533032713,-450.0,0.00013698,2]
[361379736,1747533032725,-450.0,0.00013698,2]
[361379738,1747533032736,-450.0,0.00013698,2]
[361379740,1747533032747,-450.0,0.00013698,2]
[361379742,1747533032759,-267.82456233,0.00013698,2]
[361379745,1747533032770,-450.0,0.00013698,2]
[361379747,1747533032782,-450.0,0.00013698,2]
[361379749,1747533032792,-941.5,0.00013698,2]
[361379751,1747533032803,-460.3249219,0.00013698,2]
[361379753,1747533032813,-450.0,0.00013698,2]
[361379755,1747533032824,-453.54962649,0.00013698,2]
[361379757,1747533032833,-450.0,0.00013698,2]
[361379759,1747533032843,-457.04479933,0.00013698,2]
[361379762,1747533032855,-194.02444995,0.00013698,2]
[361379764,1747533032867,-457.37818197,0.00013698,2]
[361379766,1747533032878,-227.46047177,0.00013698,2]
[361379925,1747533043484,-222.53952823,0.00013698,2]
[361379926,1747533043494,-463.85291869,0.00013698,2]
[361379927,1747533043506,-450.0,0.00013698,2]
[361379928,1747533043516,-455.07182833,0.00013698,2]
[361379929,1747533043527,-205.68421462,0.00013698,2]
[361379930,1747533043540,-425.43949506,0.00013698,2]
[361379931,1747533043552,-453.2477313,0.00013698,2]
[361379934,1747533043564,-268.14238075,0.00013698,2]
[361380007,1747533812754,6147.0,0.00011,2]
[361380014,1747534158174,-7082.0,0.000123,2]
[361380015,1747534158197,-1200.0,0.00012328,2]
[361380016,1747534158220,-97.0,0.00012328,2]
[361380035,1747534238475,-300.0,0.00012328,2]
[361380036,1747534238484,-530.0,0.00012328,2]
[361380037,1747534238493,-749.03,0.00012329,2]
[361380038,1747534238502,-624.19,0.00012329,2]
[361380039,1747534238511,-520.16,0.00012329,2]
[361380040,1747534238520,-433.46,0.00012329,2]
[361380041,1747534238529,-361.22,0.00012329,2]
[361380042,1747534238538,-301.02,0.00012329,2]